[Event "*** Titled Tuesday Blitz"]
[Site "Chess.com"]
[Date "2021.02.02"]
[Round "6"]
[White "IriBu"]
[Black "Zmeeed63"]
[Result "1-0"]
[WhiteElo "2560"]
[BlackElo "2377"]
[TimeControl "180+1"]
[EndTime "11:05:58 PST"]
[Termination "IriBu won by resignation"]

1. e4 {[%clk 0:03:00.9]} 1... c5 {[%clk 0:02:49.6]} 2. Be2 {[%clk 0:03:00.8]}
2... d5 {[%clk 0:02:48.9]} 3. e5 {[%clk 0:03:00.7]} 3... Nc6 {[%clk 0:02:45.1]}
4. f4 {[%clk 0:03:00]} 4... Bf5 {[%clk 0:02:42.3]} 5. Nf3 {[%clk 0:03:00]} 5...
e6 {[%clk 0:02:41.2]} 6. O-O {[%clk 0:02:59.6]} 6... h5 {[%clk 0:02:37.8]} 7. d3
{[%clk 0:02:54.3]} 7... Be7 {[%clk 0:02:37.2]} 8. Be3 {[%clk 0:02:50]} 8... Nh6
{[%clk 0:02:36.3]} 9. Kh1 {[%clk 0:02:47.5]} 9... O-O {[%clk 0:02:29.9]} 10. c3
{[%clk 0:02:45.8]} 10... Rc8 {[%clk 0:02:27.6]} 11. Bg1 {[%clk 0:02:42.8]} 11...
b5 {[%clk 0:02:17.5]} 12. a3 {[%clk 0:02:40.3]} 12... a5 {[%clk 0:02:15.9]} 13.
Nbd2 {[%clk 0:02:36.6]} 13... b4 {[%clk 0:01:51.2]} 14. axb4 {[%clk 0:02:35.6]}
14... axb4 {[%clk 0:01:50.8]} 15. c4 {[%clk 0:02:34.1]} 15... Bg6 {[%clk
0:01:29]} 16. Rc1 {[%clk 0:02:26.6]} 16... Na5 {[%clk 0:01:15.1]} 17. cxd5
{[%clk 0:02:21.4]} 17... Qxd5 {[%clk 0:00:57.9]} 18. Nc4 {[%clk 0:02:17.4]}
18... Nxc4 {[%clk 0:00:57.3]} 19. dxc4 {[%clk 0:02:17.4]} 19... Qb7 {[%clk
0:00:46.6]} 20. Ng5 {[%clk 0:02:10.4]} 20... Rfd8 {[%clk 0:00:39.4]} 21. Qe1
{[%clk 0:02:05.8]} 21... Bxg5 {[%clk 0:00:24.2]} 22. Bf3 {[%clk 0:02:06.2]}
22... Be4 {[%clk 0:00:25.1]} 23. Bxe4 {[%clk 0:02:06]} 1-0

[Event "*** Titled Tuesday Blitz"]
[Site "Chess.com"]
[Date "2021.02.02"]
[Round "6"]
[White "OK97"]
[Black "Firegrizzly"]
[Result "1-0"]
[WhiteElo "2783"]
[BlackElo "2587"]
[TimeControl "180+1"]
[EndTime "11:06:17 PST"]
[Termination "OK97 won by resignation"]

1. d4 {[%clk 0:03:00.9]} 1... Nf6 {[%clk 0:02:59.2]} 2. c4 {[%clk 0:03:01.1]}
2... e6 {[%clk 0:02:59]} 3. Nc3 {[%clk 0:03:01.1]} 3... d5 {[%clk 0:02:59.6]} 4.
cxd5 {[%clk 0:03:00.3]} 4... exd5 {[%clk 0:03:00.5]} 5. Bg5 {[%clk 0:03:00.3]}
5... c6 {[%clk 0:03:00.2]} 6. Qc2 {[%clk 0:02:59.6]} 6... Bd6 {[%clk 0:03:00.2]}
7. e3 {[%clk 0:02:59.5]} 7... Nbd7 {[%clk 0:03:00.4]} 8. Bd3 {[%clk 0:02:59.7]}
8... h6 {[%clk 0:03:00.5]} 9. Bh4 {[%clk 0:02:59.8]} 9... O-O {[%clk 0:03:00.2]}
10. Nge2 {[%clk 0:02:59.2]} 10... Re8 {[%clk 0:03:00.3]} 11. h3 {[%clk
0:02:57.8]} 11... Nf8 {[%clk 0:02:59.9]} 12. O-O {[%clk 0:02:55.5]} 12... Ne6
{[%clk 0:02:56.2]} 13. f4 {[%clk 0:02:47.5]} 13... Nf8 {[%clk 0:02:53.6]} 14.
Rf3 {[%clk 0:02:44.9]} 14... Be7 {[%clk 0:02:49.4]} 15. Raf1 {[%clk 0:02:25.6]}
15... b5 {[%clk 0:02:49]} 16. Nd1 {[%clk 0:02:16.9]} 16... Bb7 {[%clk
0:02:42.4]} 17. Ng3 {[%clk 0:02:13.8]} 17... Rc8 {[%clk 0:02:36.8]} 18. Nf5
{[%clk 0:02:10.9]} 18... a6 {[%clk 0:02:33.6]} 19. Rg3 {[%clk 0:02:05.2]} 19...
Kh8 {[%clk 0:02:06]} 20. Rxg7 {[%clk 0:01:57.4]} 20... c5 {[%clk 0:02:00.1]} 21.
Rxf7 {[%clk 0:01:43.7]} 21... cxd4 {[%clk 0:01:42.5]} 22. Nxe7 {[%clk 0:01:36]}
22... Ne4 {[%clk 0:01:31.8]} 23. Bxe4 {[%clk 0:01:30.4]} 23... Rxe7 {[%clk
0:01:28.9]} 24. Bxe7 {[%clk 0:01:18.7]} 24... Rxc2 {[%clk 0:01:27.5]} 25. Bxd8
{[%clk 0:01:08.2]} 25... dxe4 {[%clk 0:01:27.1]} 26. Bf6+ {[%clk 0:01:07.1]}
26... Kg8 {[%clk 0:01:26]} 27. Rg7+ {[%clk 0:01:07.6]} 27... Kh8 {[%clk
0:01:26.9]} 28. Rxb7+ {[%clk 0:01:07.5]} 28... Kg8 {[%clk 0:01:27.4]} 29. Rg7+
{[%clk 0:01:07.7]} 1-0

[Event "*** Titled Tuesday Blitz"]
[Site "Chess.com"]
[Date "2021.02.02"]
[Round "6"]
[White "adriangschnitzer"]
[Black "Vnebo"]
[Result "0-1"]
[WhiteElo "2501"]
[BlackElo "2726"]
[TimeControl "180+1"]
[EndTime "11:06:18 PST"]
[Termination "Vnebo won by resignation"]

1. e4 {[%clk 0:02:59.6]} 1... d5 {[%clk 0:02:59.6]} 2. exd5 {[%clk 0:02:59.3]}
2... Qxd5 {[%clk 0:03:00.5]} 3. d4 {[%clk 0:02:56.4]} 3... e5 {[%clk 0:02:59.5]}
4. dxe5 {[%clk 0:02:52.2]} 4... Qxd1+ {[%clk 0:02:58.5]} 5. Kxd1 {[%clk
0:02:51.9]} 5... Nc6 {[%clk 0:02:59.1]} 6. f4 {[%clk 0:02:49.6]} 6... Bg4+
{[%clk 0:02:56.5]} 7. Be2 {[%clk 0:02:46.9]} 7... O-O-O+ {[%clk 0:02:56.2]} 8.
Ke1 {[%clk 0:02:47.2]} 8... Bf5 {[%clk 0:02:38]} 9. c3 {[%clk 0:02:44.3]} 9...
f6 {[%clk 0:02:38.2]} 10. Nf3 {[%clk 0:02:39.9]} 10... Re8 {[%clk 0:02:22.6]}
11. Nd4 {[%clk 0:02:29.4]} 11... Be4 {[%clk 0:02:18.1]} 12. Bf3 {[%clk
0:01:52.4]} 12... fxe5 {[%clk 0:02:14.7]} 13. Nxc6 {[%clk 0:01:51.6]} 13... bxc6
{[%clk 0:02:01.2]} 14. Kf2 {[%clk 0:01:48.3]} 14... Bc5+ {[%clk 0:01:52.5]} 15.
Be3 {[%clk 0:01:45.8]} 15... Bxe3+ {[%clk 0:01:45.3]} 16. Kxe3 {[%clk
0:01:46.7]} 16... exf4+ {[%clk 0:01:45.2]} 17. Kxf4 {[%clk 0:01:47.1]} 17... Nf6
{[%clk 0:01:44.7]} 18. Nd2 {[%clk 0:01:43.4]} 18... Rhf8 {[%clk 0:01:41.3]} 19.
Kg3 {[%clk 0:01:37.6]} 19... Bxf3 {[%clk 0:01:37.4]} 20. gxf3 {[%clk 0:01:36.5]}
20... Re2 {[%clk 0:01:36.1]} 21. Rad1 {[%clk 0:01:34.9]} 21... Nh5+ {[%clk
0:01:24.9]} 22. Kh3 {[%clk 0:01:35]} 22... Nf4+ {[%clk 0:01:21.2]} 23. Kh4
{[%clk 0:01:32.7]} 23... g5+ {[%clk 0:00:57]} 24. Kxg5 {[%clk 0:01:29.8]} 24...
Rg2+ {[%clk 0:00:57.9]} 0-1

[Event "*** Titled Tuesday Blitz"]
[Site "Chess.com"]
[Date "2021.02.02"]
[Round "6"]
[White "chesslh19"]
[Black "TurboSteen"]
[Result "1-0"]
[WhiteElo "2253"]
[BlackElo "2034"]
[TimeControl "180+1"]
[EndTime "11:06:18 PST"]
[Termination "chesslh19 won by resignation"]

1. e4 {[%clk 0:03:00.9]} 1... e6 {[%clk 0:01:11.5]} 2. d4 {[%clk 0:03:00]} 2...
d5 {[%clk 0:01:10.7]} 3. Nd2 {[%clk 0:02:59.8]} 3... Nf6 {[%clk 0:01:09.2]} 4.
e5 {[%clk 0:02:59.9]} 4... Nfd7 {[%clk 0:01:08.9]} 5. Bd3 {[%clk 0:03:00.7]}
5... c5 {[%clk 0:01:08.7]} 6. c3 {[%clk 0:03:01.4]} 6... Nc6 {[%clk 0:01:08.8]}
7. Ne2 {[%clk 0:03:01.8]} 7... cxd4 {[%clk 0:01:08.1]} 8. cxd4 {[%clk
0:03:02.7]} 8... f6 {[%clk 0:01:07.7]} 9. exf6 {[%clk 0:03:03.6]} 9... Nxf6
{[%clk 0:01:07.8]} 10. O-O {[%clk 0:03:04.1]} 10... Bd6 {[%clk 0:01:07.7]} 11.
Nf3 {[%clk 0:03:04.6]} 11... Qc7 {[%clk 0:01:07.8]} 12. g3 {[%clk 0:03:05.1]}
12... O-O {[%clk 0:01:06.5]} 13. Bf4 {[%clk 0:03:05.3]} 13... Bxf4 {[%clk
0:01:04.9]} 14. Nxf4 {[%clk 0:03:05.2]} 14... Ne4 {[%clk 0:01:03.9]} 15. Rc1
{[%clk 0:02:40.6]} 15... Rxf4 {[%clk 0:01:00]} 16. gxf4 {[%clk 0:02:40.1]} 16...
Qxf4 {[%clk 0:00:59.7]} 17. Bxe4 {[%clk 0:02:18.3]} 17... dxe4 {[%clk 0:00:57]}
18. Ne5 {[%clk 0:02:18.2]} 18... Nxe5 {[%clk 0:00:52.9]} 19. dxe5 {[%clk
0:02:18.2]} 19... Qxe5 {[%clk 0:00:51.7]} 20. Qd8+ {[%clk 0:02:03.7]} 20... Kf7
{[%clk 0:00:49.5]} 21. Rxc8 {[%clk 0:01:46.8]} 21... Rxc8 {[%clk 0:00:45.4]} 22.
Qxc8 {[%clk 0:01:47.7]} 22... Qg5+ {[%clk 0:00:43.8]} 23. Kh1 {[%clk 0:01:46.9]}
23... Qg4 {[%clk 0:00:42.5]} 24. Qxb7+ {[%clk 0:01:41.8]} 24... Kf6 {[%clk
0:00:39]} 25. Qb3 {[%clk 0:01:41.2]} 1-0

[Event "*** Titled Tuesday Blitz"]
[Site "Chess.com"]
[Date "2021.02.02"]
[Round "6"]
[White "DFeco"]
[Black "ketster"]
[Result "0-1"]
[WhiteElo "2237"]
[BlackElo "2385"]
[TimeControl "180+1"]
[EndTime "11:06:36 PST"]
[Termination "ketster won by resignation"]

1. c4 {[%clk 0:03:00.9]} 1... Nf6 {[%clk 0:02:20]} 2. g3 {[%clk 0:03:00.8]} 2...
e6 {[%clk 0:02:20]} 3. Bg2 {[%clk 0:03:00.7]} 3... d5 {[%clk 0:02:20.6]} 4. Nf3
{[%clk 0:03:01.1]} 4... d4 {[%clk 0:02:20.9]} 5. O-O {[%clk 0:03:00.4]} 5... c5
{[%clk 0:02:20.9]} 6. e3 {[%clk 0:03:00.2]} 6... Nc6 {[%clk 0:02:18.9]} 7. exd4
{[%clk 0:03:00.2]} 7... cxd4 {[%clk 0:02:18.7]} 8. Re1 {[%clk 0:03:00.2]} 8...
Be7 {[%clk 0:02:17.8]} 9. b3 {[%clk 0:02:59.9]} 9... Nd7 {[%clk 0:02:08.8]} 10.
Bb2 {[%clk 0:02:57.8]} 10... e5 {[%clk 0:02:07.1]} 11. d3 {[%clk 0:02:56]} 11...
O-O {[%clk 0:02:04.2]} 12. Ba3 {[%clk 0:02:54.6]} 12... Bxa3 {[%clk 0:01:40.1]}
13. Nxa3 {[%clk 0:02:53.3]} 13... f6 {[%clk 0:01:40.3]} 14. Nb5 {[%clk 0:02:47]}
14... Nc5 {[%clk 0:01:37.7]} 15. Qd2 {[%clk 0:02:41.3]} 15... a6 {[%clk
0:01:35.4]} 16. Na3 {[%clk 0:02:37.6]} 16... Bf5 {[%clk 0:01:32.9]} 17. Bf1
{[%clk 0:02:37.4]} 17... Qb6 {[%clk 0:01:04.5]} 18. Nc2 {[%clk 0:02:34]} 18...
a5 {[%clk 0:01:04.2]} 19. Rab1 {[%clk 0:02:30.5]} 19... Nb4 {[%clk 0:01:00.9]}
20. Nxb4 {[%clk 0:02:24.5]} 20... axb4 {[%clk 0:00:58.6]} 21. a4 {[%clk
0:02:13.6]} 21... bxa3 {[%clk 0:00:55.5]} 22. b4 {[%clk 0:02:13.2]} 22... a2
{[%clk 0:00:53.2]} 23. Ra1 {[%clk 0:02:07.2]} 23... Nb3 {[%clk 0:00:53]} 24. Qb2
{[%clk 0:02:03.7]} 24... Nxa1 {[%clk 0:00:53.2]} 25. Rxa1 {[%clk 0:02:03.6]}
25... Qa6 {[%clk 0:00:53.4]} 26. Nd2 {[%clk 0:02:03.2]} 26... Qa3 {[%clk
0:00:53.1]} 27. Qc2 {[%clk 0:01:56]} 27... Ra4 {[%clk 0:00:42.4]} 28. b5 {[%clk
0:01:51.8]} 28... Rfa8 {[%clk 0:00:40.5]} 29. Nb3 {[%clk 0:01:49.1]} 29... Rb4
{[%clk 0:00:39.7]} 30. Nc1 {[%clk 0:01:46.2]} 30... Rb2 {[%clk 0:00:38.5]} 31.
Qd1 {[%clk 0:01:43.7]} 31... Rb1 {[%clk 0:00:38.5]} 0-1

[Event "*** Titled Tuesday Blitz"]
[Site "Chess.com"]
[Date "2021.02.02"]
[Round "6"]
[White "vovachesss"]
[Black "jefferyx"]
[Result "0-1"]
[WhiteElo "2738"]
[BlackElo "2967"]
[TimeControl "180+1"]
[EndTime "11:06:38 PST"]
[Termination "jefferyx won by resignation"]

1. d4 {[%clk 0:03:00.9]} 1... Nf6 {[%clk 0:02:59.2]} 2. Nc3 {[%clk 0:02:59.7]}
2... d5 {[%clk 0:02:58]} 3. Bf4 {[%clk 0:03:00.4]} 3... e6 {[%clk 0:02:58.6]} 4.
e3 {[%clk 0:03:00.3]} 4... Bb4 {[%clk 0:02:59.1]} 5. Bd3 {[%clk 0:02:59]} 5...
c5 {[%clk 0:02:58.7]} 6. dxc5 {[%clk 0:02:59.4]} 6... Nbd7 {[%clk 0:02:50.8]} 7.
Nf3 {[%clk 0:02:55.1]} 7... Nxc5 {[%clk 0:02:44.3]} 8. O-O {[%clk 0:02:50.8]}
8... Bxc3 {[%clk 0:02:43.5]} 9. bxc3 {[%clk 0:02:50.9]} 9... O-O {[%clk
0:02:44.4]} 10. c4 {[%clk 0:02:49.3]} 10... b6 {[%clk 0:02:43.6]} 11. cxd5
{[%clk 0:02:44.1]} 11... Nxd5 {[%clk 0:02:44.5]} 12. Be5 {[%clk 0:02:33.7]}
12... Bb7 {[%clk 0:02:44.3]} 13. Qe2 {[%clk 0:02:25.6]} 13... Rc8 {[%clk
0:02:43]} 14. Rfd1 {[%clk 0:02:25.3]} 14... Qe7 {[%clk 0:02:43.6]} 15. c4 {[%clk
0:02:14.9]} 15... Nxd3 {[%clk 0:02:16.7]} 16. Rxd3 {[%clk 0:02:11]} 16... Rxc4
{[%clk 0:02:15.8]} 17. e4 {[%clk 0:01:47.8]} 17... Nb4 {[%clk 0:02:16]} 18. Bd6
{[%clk 0:01:39.3]} 18... Qf6 {[%clk 0:02:16.2]} 19. Bxf8 {[%clk 0:01:37.9]}
19... Nxd3 {[%clk 0:02:14.3]} 20. Rd1 {[%clk 0:01:07.7]} 20... Bxe4 {[%clk
0:02:14.2]} 21. Nd2 {[%clk 0:00:54.7]} 21... Rc2 {[%clk 0:02:08.9]} 22. Qxe4
{[%clk 0:00:34.1]} 22... Qxf2+ {[%clk 0:02:07.7]} 23. Kh1 {[%clk 0:00:31.8]}
23... Qxd2 {[%clk 0:01:48.9]} 24. Rf1 {[%clk 0:00:03.8]} 24... Nf2+ {[%clk
0:01:48]} 25. Rxf2 {[%clk 0:00:04.4]} 25... Rc1+ {[%clk 0:01:47.9]} 0-1

[Event "*** Titled Tuesday Blitz"]
[Site "Chess.com"]
[Date "2021.02.02"]
[Round "6"]
[White "ShimanovAlex"]
[Black "temiksmozg"]
[Result "1-0"]
[WhiteElo "2835"]
[BlackElo "2625"]
[TimeControl "180+1"]
[EndTime "11:06:39 PST"]
[Termination "ShimanovAlex won by resignation"]

1. e4 {[%clk 0:03:00.9]} 1... c5 {[%clk 0:02:59.6]} 2. Nc3 {[%clk 0:02:53.8]}
2... e6 {[%clk 0:02:59.2]} 3. d4 {[%clk 0:02:49.3]} 3... cxd4 {[%clk 0:02:58.6]}
4. Qxd4 {[%clk 0:02:50.2]} 4... Nc6 {[%clk 0:02:57.2]} 5. Qe3 {[%clk 0:02:50.8]}
5... Nf6 {[%clk 0:02:51.1]} 6. Bd2 {[%clk 0:02:40]} 6... Ng4 {[%clk 0:02:29.8]}
7. Qg3 {[%clk 0:02:38.2]} 7... h5 {[%clk 0:02:25.1]} 8. O-O-O {[%clk 0:02:35.6]}
8... Bc5 {[%clk 0:02:23.1]} 9. Nh3 {[%clk 0:02:27.1]} 9... Qf6 {[%clk
0:01:49.4]} 10. f4 {[%clk 0:02:15.1]} 10... d6 {[%clk 0:01:23.3]} 11. Be2 {[%clk
0:02:09.2]} 11... Nd4 {[%clk 0:01:05.3]} 12. Bxg4 {[%clk 0:02:07.8]} 12... hxg4
{[%clk 0:01:05.5]} 13. Qxg4 {[%clk 0:02:08.7]} 13... Bd7 {[%clk 0:00:57]} 14. e5
{[%clk 0:02:04.5]} 14... Qf5 {[%clk 0:00:51.9]} 15. Qxf5 {[%clk 0:02:02.7]}
15... Nxf5 {[%clk 0:00:52.8]} 16. Ne4 {[%clk 0:02:01.4]} 16... Bc6 {[%clk
0:00:53.1]} 17. Nhg5 {[%clk 0:01:54.9]} 17... b6 {[%clk 0:00:29.5]} 18. b4
{[%clk 0:01:46.3]} 18... Bd4 {[%clk 0:00:24.9]} 19. c3 {[%clk 0:01:40.8]} 19...
d5 {[%clk 0:00:23.6]} 20. Ng3 {[%clk 0:01:37.2]} 1-0

[Event "*** Titled Tuesday Blitz"]
[Site "Chess.com"]
[Date "2021.02.02"]
[Round "6"]
[White "SanchezKelvin"]
[Black "BikingBrian"]
[Result "0-1"]
[WhiteElo "2458"]
[BlackElo "2327"]
[TimeControl "180+1"]
[EndTime "11:06:41 PST"]
[Termination "BikingBrian won by resignation"]

1. e4 {[%clk 0:03:00.9]} 1... c5 {[%clk 0:02:59.4]} 2. Nf3 {[%clk 0:03:00.7]}
2... g6 {[%clk 0:02:59.9]} 3. d4 {[%clk 0:03:00.8]} 3... cxd4 {[%clk 0:03:00.8]}
4. Qxd4 {[%clk 0:03:01.1]} 4... Nf6 {[%clk 0:03:00.4]} 5. e5 {[%clk 0:03:01.6]}
5... Nc6 {[%clk 0:03:00.9]} 6. Qa4 {[%clk 0:03:01.5]} 6... Nd5 {[%clk 0:03:01]}
7. Qe4 {[%clk 0:03:01.5]} 7... Nb6 {[%clk 0:03:01.2]} 8. Nc3 {[%clk 0:03:01.1]}
8... d5 {[%clk 0:03:01.3]} 9. exd6 {[%clk 0:03:00.6]} 9... Bf5 {[%clk
0:03:01.5]} 10. Qe3 {[%clk 0:02:52.1]} 10... Qxd6 {[%clk 0:02:56.1]} 11. Bb5
{[%clk 0:02:51]} 11... Bg7 {[%clk 0:02:53]} 12. O-O {[%clk 0:02:50.3]} 12... O-O
{[%clk 0:02:50.5]} 13. Rd1 {[%clk 0:02:49]} 13... Qc7 {[%clk 0:02:50.4]} 14.
Bxc6 {[%clk 0:02:40.8]} 14... bxc6 {[%clk 0:02:50.6]} 15. Qe2 {[%clk 0:02:37.2]}
15... Rad8 {[%clk 0:02:36.4]} 16. Bg5 {[%clk 0:02:33.6]} 16... Rxd1+ {[%clk
0:02:04.1]} 17. Rxd1 {[%clk 0:02:31.1]} 17... Rd8 {[%clk 0:02:04.1]} 18. Rxd8+
{[%clk 0:02:29.1]} 18... Qxd8 {[%clk 0:02:05]} 19. Qxe7 {[%clk 0:02:15.9]} 19...
Qxe7 {[%clk 0:01:59.1]} 20. Bxe7 {[%clk 0:02:15.7]} 20... Bxc2 {[%clk
0:01:59.1]} 21. Bc5 {[%clk 0:02:15.3]} 21... Nc4 {[%clk 0:01:43.3]} 22. Bxa7
{[%clk 0:02:08.9]} 22... Nxb2 {[%clk 0:01:43.4]} 23. Bd4 {[%clk 0:02:08.7]}
23... Bd3 {[%clk 0:01:13.1]} 24. Bxg7 {[%clk 0:02:03.5]} 24... Kxg7 {[%clk
0:01:13.1]} 25. Ne5 {[%clk 0:02:02]} 25... c5 {[%clk 0:01:06.2]} 26. a4 {[%clk
0:01:52.8]} 26... Ba6 {[%clk 0:01:03.6]} 27. f4 {[%clk 0:01:45.4]} 27... f6
{[%clk 0:01:02.3]} 28. Nd7 {[%clk 0:01:41.9]} 28... c4 {[%clk 0:01:01.4]} 29.
Nc5 {[%clk 0:01:41.4]} 29... Bc8 {[%clk 0:00:58.8]} 30. a5 {[%clk 0:01:37.4]}
30... Nd3 {[%clk 0:00:56.5]} 31. Nxd3 {[%clk 0:01:34]} 31... cxd3 {[%clk
0:00:57.4]} 32. Kf2 {[%clk 0:01:34.4]} 32... Kf7 {[%clk 0:00:55.3]} 33. Na4
{[%clk 0:01:32.4]} 33... Ba6 {[%clk 0:00:47.3]} 34. Nc5 {[%clk 0:01:31.6]} 34...
d2 {[%clk 0:00:40.6]} 0-1

[Event "*** Titled Tuesday Blitz"]
[Site "Chess.com"]
[Date "2021.02.02"]
[Round "6"]
[White "HElissalt"]
[Black "IMRosen"]
[Result "1-0"]
[WhiteElo "2246"]
[BlackElo "2539"]
[TimeControl "180+1"]
[EndTime "11:06:44 PST"]
[Termination "HElissalt won by resignation"]

1. d4 {[%clk 0:03:00.9]} 1... Nf6 {[%clk 0:02:54.5]} 2. c4 {[%clk 0:02:59.8]}
2... e5 {[%clk 0:02:53.7]} 3. dxe5 {[%clk 0:02:55.2]} 3... Ng4 {[%clk
0:02:52.8]} 4. e3 {[%clk 0:02:51.5]} 4... Nxe5 {[%clk 0:02:52.3]} 5. f4 {[%clk
0:02:46.1]} 5... Nec6 {[%clk 0:02:47.3]} 6. Nf3 {[%clk 0:02:35.2]} 6... Bc5
{[%clk 0:02:42.3]} 7. Bd3 {[%clk 0:02:29.8]} 7... d6 {[%clk 0:02:31.7]} 8. Nc3
{[%clk 0:02:26.5]} 8... O-O {[%clk 0:02:19.1]} 9. O-O {[%clk 0:02:25.2]} 9...
Re8 {[%clk 0:02:08.4]} 10. Ng5 {[%clk 0:02:14.3]} 10... h6 {[%clk 0:02:04.3]}
11. Nd5 {[%clk 0:02:05]} 11... hxg5 {[%clk 0:01:24.4]} 12. Qh5 {[%clk
0:01:53.4]} 12... f5 {[%clk 0:01:14.6]} 13. fxg5 {[%clk 0:01:51.3]} 13... Ne5
{[%clk 0:01:12.4]} 14. g6 {[%clk 0:01:45.6]} 14... Nxg6 {[%clk 0:00:49.5]} 15.
Qxg6 {[%clk 0:01:45.2]} 15... c6 {[%clk 0:00:17.5]} 16. Nf4 {[%clk 0:01:35.1]}
16... Qf6 {[%clk 0:00:13.8]} 17. Qxe8+ {[%clk 0:01:30.3]} 17... Kh7 {[%clk
0:00:11.5]} 18. Qxc8 {[%clk 0:01:17.7]} 1-0

[Event "*** Titled Tuesday Blitz"]
[Site "Chess.com"]
[Date "2021.02.02"]
[Round "6"]
[White "Frolyanov_D"]
[Black "erdni1993"]
[Result "1-0"]
[WhiteElo "2608"]
[BlackElo "2459"]
[TimeControl "180+1"]
[EndTime "11:06:47 PST"]
[Termination "Frolyanov_D won by resignation"]

1. d4 {[%clk 0:02:46.6]} 1... Nf6 {[%clk 0:02:59.6]} 2. c4 {[%clk 0:02:40.8]}
2... e6 {[%clk 0:03:00]} 3. Nc3 {[%clk 0:02:36.8]} 3... c5 {[%clk 0:03:00.4]} 4.
d5 {[%clk 0:02:34.8]} 4... exd5 {[%clk 0:03:00.8]} 5. cxd5 {[%clk 0:02:35.6]}
5... Bd6 {[%clk 0:03:01.1]} 6. Nf3 {[%clk 0:02:33.2]} 6... O-O {[%clk
0:02:59.5]} 7. g3 {[%clk 0:02:32]} 7... h6 {[%clk 0:02:58.1]} 8. Bg2 {[%clk
0:02:31.9]} 8... a6 {[%clk 0:02:58.3]} 9. a4 {[%clk 0:02:29.7]} 9... Re8 {[%clk
0:02:58.4]} 10. O-O {[%clk 0:02:29.2]} 10... Bc7 {[%clk 0:02:58.5]} 11. Re1
{[%clk 0:02:27.6]} 11... d6 {[%clk 0:02:58.2]} 12. h3 {[%clk 0:02:27.3]} 12...
Nbd7 {[%clk 0:02:58.3]} 13. e4 {[%clk 0:02:26.4]} 13... Rb8 {[%clk 0:02:58.6]}
14. g4 {[%clk 0:02:15.2]} 14... b5 {[%clk 0:02:56.6]} 15. axb5 {[%clk
0:02:16.1]} 15... axb5 {[%clk 0:02:57.3]} 16. g5 {[%clk 0:02:14.1]} 16... hxg5
{[%clk 0:02:51.2]} 17. Bxg5 {[%clk 0:02:15]} 17... b4 {[%clk 0:02:49.7]} 18. Nb1
{[%clk 0:02:10]} 18... Ne5 {[%clk 0:02:34.8]} 19. Nxe5 {[%clk 0:02:04.4]} 19...
Rxe5 {[%clk 0:02:34.2]} 20. f4 {[%clk 0:02:01.9]} 20... Re8 {[%clk 0:02:24.9]}
21. Nd2 {[%clk 0:02:01.5]} 21... Bd7 {[%clk 0:02:17.9]} 22. Kh1 {[%clk
0:01:57.5]} 22... Qc8 {[%clk 0:02:07.3]} 23. Bxf6 {[%clk 0:01:55.5]} 23... gxf6
{[%clk 0:02:05]} 24. Qh5 {[%clk 0:01:54.7]} 24... Kf8 {[%clk 0:02:01.3]} 25. Nc4
{[%clk 0:01:49.5]} 25... Bb5 {[%clk 0:01:47.8]} 26. e5 {[%clk 0:01:47.6]} 26...
dxe5 {[%clk 0:00:46.9]} 27. fxe5 {[%clk 0:01:48.5]} 27... Bxe5 {[%clk
0:00:28.8]} 28. Ra7 {[%clk 0:01:40.5]} 1-0

[Event "*** Titled Tuesday Blitz"]
[Site "Chess.com"]
[Date "2021.02.02"]
[Round "6"]
[White "kasparicy"]
[Black "AttilaTurzo"]
[Result "1/2-1/2"]
[WhiteElo "2348"]
[BlackElo "2543"]
[TimeControl "180+1"]
[EndTime "11:06:47 PST"]
[Termination "Game drawn by repetition"]

1. e4 {[%clk 0:03:00.9]} 1... e5 {[%clk 0:02:59.8]} 2. Nf3 {[%clk 0:03:00.4]}
2... Nc6 {[%clk 0:03:00.4]} 3. Bc4 {[%clk 0:03:00.9]} 3... Bc5 {[%clk
0:02:59.7]} 4. O-O {[%clk 0:03:00.6]} 4... Nf6 {[%clk 0:02:59.6]} 5. d4 {[%clk
0:03:01.1]} 5... Bxd4 {[%clk 0:02:55.4]} 6. Nxd4 {[%clk 0:03:00.8]} 6... Nxd4
{[%clk 0:02:56.3]} 7. f4 {[%clk 0:03:01.4]} 7... d6 {[%clk 0:02:56.1]} 8. fxe5
{[%clk 0:03:01.6]} 8... dxe5 {[%clk 0:02:56.5]} 9. Bg5 {[%clk 0:03:00.4]} 9...
Be6 {[%clk 0:02:46.6]} 10. Na3 {[%clk 0:03:00.2]} 10... Qe7 {[%clk 0:02:33]} 11.
Bxf6 {[%clk 0:02:58.9]} 11... gxf6 {[%clk 0:02:32.6]} 12. c3 {[%clk 0:02:59.8]}
12... Nc6 {[%clk 0:02:23]} 13. Qf3 {[%clk 0:02:48.1]} 13... Qc5+ {[%clk
0:02:05.4]} 14. Qf2 {[%clk 0:02:47.5]} 14... Qxf2+ {[%clk 0:02:02.2]} 15. Rxf2
{[%clk 0:02:48.4]} 15... Ke7 {[%clk 0:01:57.6]} 16. Raf1 {[%clk 0:02:47.8]}
16... f5 {[%clk 0:01:31.6]} 17. exf5 {[%clk 0:02:40]} 17... Bxc4 {[%clk
0:01:30.5]} 18. Nxc4 {[%clk 0:02:26.2]} 18... f6 {[%clk 0:01:24.7]} 19. Ne3
{[%clk 0:02:03.9]} 19... Rad8 {[%clk 0:01:22.4]} 20. c4 {[%clk 0:02:03.4]} 20...
Rd7 {[%clk 0:01:17.7]} 21. Nd5+ {[%clk 0:02:01.9]} 21... Kf7 {[%clk 0:01:17.6]}
22. Rf3 {[%clk 0:01:58]} 22... Ne7 {[%clk 0:01:06.6]} 23. Nxe7 {[%clk 0:01:46]}
23... Kxe7 {[%clk 0:01:07.5]} 24. Rh3 {[%clk 0:01:40.6]} 24... h5 {[%clk
0:01:05.2]} 25. Rg3 {[%clk 0:01:38.7]} 25... Kf7 {[%clk 0:01:03.8]} 26. Rg6
{[%clk 0:01:24.3]} 26... Rd2 {[%clk 0:00:56.1]} 27. Rf2 {[%clk 0:01:23.5]} 27...
Rhd8 {[%clk 0:00:56.2]} 28. Rh6 {[%clk 0:01:18.4]} 28... Rd1+ {[%clk 0:00:50]}
29. Rf1 {[%clk 0:01:18.4]} 29... Rxf1+ {[%clk 0:00:49.7]} 30. Kxf1 {[%clk
0:01:19.3]} 30... Kg7 {[%clk 0:00:47.9]} 31. Rg6+ {[%clk 0:01:19]} 31... Kf7
{[%clk 0:00:47.5]} 32. Rh6 {[%clk 0:01:19.5]} 32... Kg7 {[%clk 0:00:47]} 33.
Rg6+ {[%clk 0:01:19.8]} 33... Kf7 {[%clk 0:00:47.4]} 34. Rh6 {[%clk 0:01:19.6]}
1/2-1/2